fUSD/lending_fUSD_20250115
["ID","MTS","AMOUNT","RATE_DAILY","PERIOD"]
[349055768,1736956234215,-1000.0,0.00043773,2]
[349055770,1736956234225,-1000.0,0.00043773,2]
[349055772,1736956234235,-1000.0,0.00043773,2]
[349055774,1736956234246,-1000.0,0.00043773,2]
[349055776,1736956234256,-1000.0,0.00043773,2]
[349055778,1736956234266,-1000.0,0.00043773,2]
[349055780,1736956234275,-1000.0,0.00043773,2]
[349055782,1736956234285,-1000.0,0.00043773,2]
[349055784,1736956234294,-1000.0,0.00043773,2]
[349055786,1736956234304,-1000.0,0.00043773,2]
[349055788,1736956234314,-1000.0,0.00043773,2]
[349055790,1736956234324,-1000.0,0.00043773,2]
[349055792,1736956234334,-1000.0,0.00043773,2]
[349055794,1736956234343,-1000.0,0.00043773,2]
[349055796,1736956234354,-1000.0,0.00043773,2]
[349055798,1736956234363,-1000.0,0.00043773,2]
[349055800,1736956234373,-1000.0,0.00043773,2]
[349055802,1736956234384,-1000.0,0.00043773,2]
[349055804,1736956234394,-1000.0,0.00043773,2]
[349055806,1736956234404,-1000.0,0.00043773,2]
[349055808,1736956234413,-1000.0,0.00043773,2]
[349055810,1736956234423,-759.0,0.00043773,2]
[349055812,1736956234434,-3000.0,0.000438,20]
[349055814,1736956234444,-104089.543325,0.000438,2]
[349055816,1736956234454,-2000.0,0.000438,30]
[349055818,1736956234463,-34696.5144418,0.00043825,2]
[349055820,1736956234473,-3279.65,0.00043835,120]
[349055822,1736956234482,-3279.65,0.00043835,120]
[349055824,1736956234492,-3279.65,0.00043835,120]
[349055826,1736956234502,-3279.65,0.00043835,120]
[349055828,1736956234511,-3279.65,0.00043835,120]
[349055830,1736956234521,-3279.65,0.00043835,120]
[349055832,1736956234531,-3279.65,0.00043835,120]
[349055834,1736956234540,-3279.65,0.00043835,120]
[349055836,1736956234550,-3279.65,0.00043835,120]
[349055838,1736956234559,-3279.65,0.00043835,120]
[349055840,1736956234569,-3279.65,0.00043835,120]
[349055842,1736956234578,-3279.65,0.00043835,120]
[349055844,1736956234587,-3279.65,0.00043835,120]
[349055846,1736956234596,-3279.65,0.00043835,120]
[349055847,1736956234606,-3279.65,0.00043835,120]
[349055850,1736956234616,-3279.65,0.00043835,120]
[349055851,1736956234626,-3279.65,0.00043835,120]
[349055853,1736956234635,-3279.65,0.00043835,120]
[349055856,1736956234646,-3279.65,0.00043835,120]
[349055858,1736956234656,-3279.65,0.00043835,120]
[349055859,1736956234666,-3279.65,0.00043835,120]
[349055862,1736956234677,-3279.65,0.00043835,120]
[349055864,1736956234687,-3279.65,0.00043835,120]
[349055865,1736956234697,-3279.83905571,0.00043835,120]
[349055867,1736956234707,-151.0,0.00043863,120]
[349055870,1736956234717,-34696.5144418,0.0004398,2]
[349055872,1736956234729,-28279.7295157,0.0004398,2]
[349055874,1736956234739,-3000.0,0.00044,120]
[349055876,1736956234749,-2000.0,0.00044,120]
[349055877,1736956234758,-51060.78,0.00044298,6]
[349055878,1736956234768,-2244.61,0.00044298,6]
[349055879,1736956234779,-35063.52,0.00044298,6]
[349055880,1736956234789,-11539.29,0.00044298,6]
[349055881,1736956234798,-18339.71,0.00044298,6]
[349055882,1736956234810,-24217.2,0.00044298,6]
[349055883,1736956234820,-501.68426616,0.000444,15]
[349055885,1736956234829,-176.86666667,0.00044438,120]
[349055887,1736956234838,-1001.64802598,0.00044486,3]
[349055889,1736956234848,-589.38195151,0.00044598,120]
[349055891,1736956234858,-34696.5144418,0.0004461,2]
[349055893,1736956234867,-28279.7295157,0.0004461,2]
[349055895,1736956234878,-50321.28059039,0.0004462,2]
[349055897,1736956234888,-28279.7295157,0.00044626,2]
[349055899,1736956234898,-21723.8,0.00044636,117]
[349055901,1736956234907,-64456.17,0.000447,6]
[349055903,1736956234917,-1633.83620803,0.00044715,2]
[349055905,1736956234926,-290.44497081,0.000449,17]
[349055907,1736956234936,-2316.75633329,0.00044932,15]
[349055909,1736956234945,-34696.5144418,0.0004497,2]
[349055911,1736956234954,-28279.7295157,0.0004497,2]
[349055913,1736956234964,-69393.0288835,0.0004498,2]
[349055915,1736956234974,-56559.4590313,0.0004498,2]
[349055917,1736956234983,-69393.0288835,0.0004499,2]
[349055919,1736956234992,-56559.4590313,0.0004499,2]
[349055921,1736956235001,-4265.84,0.00045,120]
[349055923,1736956235011,-2331.61,0.00045,120]
[349055925,1736956235020,-2173.16612338,0.00045,120]
[349055927,1736956235029,-2292.95460021,0.00045,14]
[349055929,1736956235039,-899.97933799,0.00045,120]
[349055931,1736956235048,-1066.64333895,0.00045,32]
[349055933,1736956235058,-60950.18759349,0.00045,120]
[349055935,1736956235067,-25000.0,0.00045,120]
[349055937,1736956235077,-10653.21,0.00045,120]
[349055939,1736956235086,-1232.0,0.00045,120]
[349055941,1736956235096,-300.0,0.00045,120]
[349055943,1736956235106,-3000.0,0.00045,120]
[349055945,1736956235116,-2000.0,0.00045,120]
[349055947,1736956235126,-12500.0,0.00045,120]
[349055949,1736956235136,-28279.7295157,0.00045052,2]
[349055951,1736956235145,-12500.0,0.00045062,120]
[349055953,1736956235155,-160.47396783,0.0004508,15]
[349055955,1736956235164,-151.0,0.00045123,120]
[349055957,1736956235173,-12500.0,0.00045125,120]
[349055959,1736956235185,-276.48,0.00045143,2]
[349055961,1736956235194,-12500.0,0.00045187,120]
[349055963,1736956235203,-34696.5144418,0.0004524,2]
[349055965,1736956235212,-12500.0,0.0004525,120]
[349055967,1736956235221,-176.86666667,0.00045288,120]
[349055969,1736956235231,-12500.0,0.00045312,120]
[349055971,1736956235241,-28279.7295157,0.00045365,2]
[349055973,1736956235250,-12500.0,0.00045375,120]
[349055975,1736956235259,-725.46,0.00045386,120]
[349055977,1736956235268,-12500.0,0.00045437,120]
[349055979,1736956235277,-837.25120582,0.000455,120]
[349055981,1736956235286,-12500.0,0.000455,120]
[349055983,1736956235296,-4000.0,0.000455,2]
[349055984,1736956235305,-34696.5144418,0.00045552,2]
[349055986,1736956235314,-12500.0,0.00045563,120]
[349055988,1736956235324,-1633.83620803,0.00045756,2]
[349055991,1736956235334,-28279.7295157,0.00045877,2]
[349055993,1736956235343,-215.09248392,0.0004589,21]
[349055995,1736956235352,-1000.0,0.00045923,2]
[349055997,1736956235362,-1000.0,0.00046,30]
[349056008,1736956235462,-3041.97862314,0.00046,30]
[349056010,1736956235472,-3000.0,0.00046,120]
[349056012,1736956235481,-2000.0,0.00046,120]
[349056014,1736956235490,-176.86666667,0.00046137,120]
[349056016,1736956235499,-1001.64802598,0.0004621,3]
[349056017,1736956235508,-151.0,0.00046384,120]
[349056018,1736956235518,-34696.5144418,0.00046525,2]
[349056019,1736956235527,-28279.7295157,0.00046525,2]
[349056020,1736956235536,-160.47396783,0.00046535,15]
[349056021,1736956235545,-23275.5,0.00046545,117]
[349056022,1736956235554,-290.44497076,0.00046567,24]
[349056023,1736956235564,-2316.75633329,0.00046588,15]
[349056024,1736956235573,-839.81,0.00046605,2]
[349056025,1736956235582,-1633.83620803,0.00046798,2]
[349056026,1736956235592,-200.0,0.000468,2]
[349056027,1736956235601,-176.86666667,0.00046986,120]
[349056028,1736956235611,-3000.0,0.00047,120]
[349056029,1736956235620,-2000.0,0.00047,120]
[349056030,1736956235629,-175.28,0.00047258,2]
[349056031,1736956235639,-34696.5144418,0.00047325,2]
[349056032,1736956235648,-28279.7295157,0.00047325,2]
[349056033,1736956235658,-1617.76678608,0.0004733,23]
[349056034,1736956235668,-104089.543325,0.000474,2]
[349056035,1736956235678,-20097.23336877,0.000474,2]
[349056037,1736956237837,-521.3999819,0.00015217,2]
[349056038,1736956237853,-4844.49971541,0.000474,2]
[349056039,1736956237870,-5012.13738009,0.000474,2]
[349056040,1736956237888,-53107.86389536,0.000474,2]
[349056041,1736956237905,-25130.64851103,0.000474,2]
[349056042,1736956237997,-4926.53519234,0.000474,2]
[349056043,1736956238013,-28279.7295157,0.00047405,2]
[349056044,1736956238028,-276.48,0.00047407,2]
[349056045,1736956238042,-28279.7295157,0.00047415,2]
[349056046,1736956238057,-3228.96,0.0004742,120]
[349056047,1736956238071,-27586.9371423,0.0004742,2]
[349056060,1736956240162,-10431.29192276,0.0004742,2]
[349056061,1736956240174,-611.31000002,0.0004742,2]
[349056062,1736956240193,-2388.217904,0.0004742,2]
[349056063,1736956240440,-150.0,0.00042108,30]
[349056064,1736956240450,-43821.43157792,0.0004742,2]
[349056065,1736956240460,-38599.0,0.00047425,120]
[349056066,1736956240470,-499851.2545,0.0004744,30]
[349056067,1736956240480,-151.0,0.00047644,120]
[349056068,1736956240490,-1310.12,0.0004773,120]
[349056069,1736956240500,-1179.75651113,0.0004773,19]
[349056070,1736956240509,-176.86666667,0.00047836,120]
[349056071,1736956240518,-1633.83620803,0.0004784,2]
[349056072,1736956240528,-1001.64802598,0.00047934,3]
[349056073,1736956240537,-3228.96,0.00047967,120]
[349056074,1736956240548,-160.47396783,0.0004799,15]
[349056075,1736956240557,-3000.0,0.00048,120]
[349056076,1736956240567,-2000.0,0.00048,120]
[349056077,1736956240576,-153.0,0.00048119,31]
[349056078,1736956240585,-153.0,0.00048119,31]
[349056079,1736956240594,-153.0,0.00048119,31]
[349056080,1736956240604,-153.0,0.00048119,31]
[349056081,1736956240613,-153.0,0.00048119,31]
[349056082,1736956240623,-153.0,0.00048119,31]
[349056083,1736956240632,-153.0,0.0004812,31]
[349056084,1736956240641,-153.0,0.0004812,31]
[349056085,1736956240651,-153.0,0.0004812,31]
[349056086,1736956240660,-153.0,0.0004812,31]
[349056087,1736956240670,-153.0,0.0004812,31]
[349056088,1736956240681,-153.0,0.00048132,31]
[349056089,1736956240690,-153.0,0.00048132,31]
[349056090,1736956240701,-153.0,0.00048132,31]
[349056091,1736956240711,-153.0,0.00048132,31]
[349056092,1736956240720,-153.0,0.00048132,31]
[349056093,1736956240729,-153.0,0.00048134,31]
[349056094,1736956240743,-153.0,0.00048134,31]
[349056095,1736956240753,-153.0,0.00048134,31]
[349056096,1736956240762,-153.0,0.00048134,31]
[349056097,1736956240772,-153.0,0.00048134,31]
[349056098,1736956240783,-153.0,0.00048146,31]
[349056099,1736956240792,-153.0,0.00048146,31]
[349056100,1736956240802,-153.0,0.00048146,31]
[349056101,1736956240812,-153.0,0.00048146,31]
[349056102,1736956240823,-153.0,0.00048146,31]
[349056105,1736956240832,-153.0,0.00048146,31]
[349056106,1736956240841,-153.0,0.00048146,31]
[349056108,1736956240851,-153.0,0.00048146,31]
[349056110,1736956240860,-153.0,0.00048146,31]
[349056112,1736956240870,-153.0,0.00048148,31]
[349056114,1736956240880,-153.0,0.00048148,31]
[349056117,1736956240890,-153.0,0.00048148,31]
[349056118,1736956240900,-153.0,0.00048148,31]
[349056121,1736956240910,-153.0,0.00048148,31]
[349056123,1736956240919,-153.0,0.0004816,31]
[349056125,1736956240928,-153.0,0.0004816,31]
[349056126,1736956240939,-153.0,0.0004816,31]
[349056129,1736956240949,-153.0,0.0004816,31]
[349056131,1736956240958,-153.0,0.0004816,31]
[349056132,1736956240967,-153.0,0.00048161,31]
[349056134,1736956240977,-153.0,0.00048161,31]
[349056137,1736956240986,-153.0,0.00048161,31]
[349056138,1736956240995,-153.0,0.00048161,31]
[349056140,1736956241005,-153.0,0.00048161,31]
[349056142,1736956241014,-290.44497076,0.00048233,31]
[349056144,1736956241023,-2316.75633329,0.00048244,15]
[349056146,1736956241032,-167.97,0.00048295,2]
[349056148,1736956241041,-350.0,0.000484,120]
[349056150,1736956241051,-24825.6,0.00048455,117]
[349056152,1736956241060,-424.31935676,0.00048488,120]
[349056154,1736956241070,-7710.51999999,0.000485,120]
[349056157,1736956241079,-3228.96,0.00048515,120]
[349056158,1736956241089,-424.31935676,0.00048576,120]
[349056160,1736956241098,-1000.0,0.000486,7]
[349056162,1736956241108,-176.86666667,0.00048685,120]
[349056178,1736956241250,-3000.0,0.000488,20]
[349056180,1736956241261,-3012.78475543,0.000488,120]
[349056182,1736956241271,-424.31935676,0.00048849,120]
[349056184,1736956241280,-90000.0,0.0004887,120]
[349056186,1736956241289,-1633.83620803,0.00048881,2]
[349056188,1736956241299,-151.0,0.00048904,120]
[349056190,1736956241308,-500.0,0.00048999,7]
[349056192,1736956241317,-250.0,0.00049,2]
[349056194,1736956241327,-43285.45536765,0.00049,30]
[349056196,1736956241336,-1356.9607927,0.00049,4]
[349056198,1736956241345,-222306.89153707,0.00049,15]
[349056200,1736956241354,-3000.0,0.00049,120]
[349056202,1736956241364,-2000.0,0.00049,120]
[349056204,1736956241373,-3228.96,0.00049063,120]
[349056206,1736956241382,-500.0,0.00049136,7]
[349056209,1736956241391,-424.31935677,0.00049139,120]
[349056211,1736956241400,-5356.66437333,0.000492,120]
[349056212,1736956241410,-1617.76678607,0.00049223,25]
[349056214,1736956241419,-500.0,0.00049273,7]
[349056215,1736956241428,-294.15534117,0.00049315,60]
[349056216,1736956241438,-150.0,0.00049328,7]
[349056217,1736956241447,-300.0,0.00049392,7]
[349056218,1736956241456,-500.0,0.0004941,120]
[349056219,1736956241465,-150.0,0.00049441,7]
[349056220,1736956241474,-160.47396783,0.00049445,15]
[349056221,1736956241483,-150.0,0.00049448,7]
[349056222,1736956241493,-150.0,0.00049449,7]
[349056224,1736956241502,-150.0,0.0004945,7]
[349056226,1736956241511,-50000.0,0.0004945,120]
[349056228,1736956241521,-150.0,0.00049452,7]
[349056230,1736956241530,-200.0,0.00049454,120]
[349056232,1736956241540,-150.0,0.00049476,7]
[349056234,1736956241550,-250.73556058,0.0004949,120]
[349056236,1736956241560,-725.46,0.00049512,120]
[349056238,1736956241570,-150.0,0.00049521,7]
[349056240,1736956241580,-150.0,0.00049527,7]
[349056242,1736956241589,-176.86666667,0.00049534,120]
[349056244,1736956241600,-200.0,0.00049536,120]
[349056246,1736956241609,-150.0,0.00049539,7]
[349056248,1736956241619,-500.0,0.00049547,120]
[349056250,1736956241628,-150.0,0.00049562,7]
[349056252,1736956241637,-150.0,0.00049566,7]
[349056254,1736956241647,-200.0,0.00049575,120]
[349056256,1736956241658,-200.0,0.00049577,120]
[349056258,1736956241667,-105283.98048212,0.000496,120]
[349056260,1736956241677,-150.0,0.00049605,7]
[349056262,1736956241691,-3228.96,0.00049611,120]
[349056264,1736956241701,-150.0,0.00049633,7]
[349056266,1736956241710,-390.61278911,0.00049639,120]
[349056268,1736956241719,-150.0,0.0004964,7]
[349056270,1736956241731,-150.0,0.00049651,7]
[349056272,1736956241741,-1001.64802598,0.00049659,3]
[349056274,1736956241750,-276.48,0.00049671,2]
[349056276,1736956241759,-500.0,0.00049684,120]
[349056278,1736956241770,-7354.64687363,0.00049695,120]
[349056280,1736956241779,-150.0,0.000497,7]
[349056282,1736956241788,-150.0,0.00049717,7]
[349056284,1736956241798,-150.0,0.00049775,7]
[349056286,1736956241807,-150.0,0.00049775,7]
[349056288,1736956241818,-150.0,0.00049786,7]
[349056290,1736956241828,-11031.97031049,0.00049804,14]
[349056292,1736956241837,-150.0,0.00049805,7]
[349056294,1736956241847,-150.0,0.00049806,7]
[349056296,1736956241856,-585.91918371,0.00049807,14]
[349056298,1736956241865,-200.0,0.00049807,14]
[349056300,1736956241875,-283.37294146,0.00049814,14]
[349056302,1736956241884,-200.0,0.0004982,14]
[349056304,1736956241892,-150.0,0.0004982,7]
[349056306,1736956241902,-200.0,0.00049821,14]
[349056307,1736956241911,-500.0,0.00049821,120]
[349056310,1736956241921,-200.0,0.00049822,14]
[349056312,1736956241932,-200.0,0.00049823,14]
[349056314,1736956241942,-11031.97031049,0.00049829,14]
[349056315,1736956241952,-585.91918371,0.00049831,14]
[349056317,1736956241962,-150.0,0.00049833,7]
[349056319,1736956241971,-585.91918371,0.00049834,14]
[349056322,1736956241982,-150.0,0.00049835,7]
[349056323,1736956241992,-150.0,0.00049842,7]
[349056326,1736956242001,-11031.97031049,0.00049845,14]
[349056328,1736956242011,-750.81573537,0.00049849,14]
[349056330,1736956242020,-750.81573537,0.00049852,14]
[349056332,1736956242030,-585.91918371,0.00049853,14]
[349056333,1736956242040,-376.10334092,0.00049856,14]
[349056335,1736956242051,-726.61008619,0.0004986,10]
[349056338,1736956242061,-585.91918371,0.00049862,14]
[349056339,1736956242071,-750.81573537,0.00049862,14]
[349056341,1736956242080,-150.0,0.00049867,7]
[349056343,1736956242089,-150.0,0.0004987,7]
[349056346,1736956242099,-150.0,0.0004987,7]
[349056348,1736956242110,-60000.0,0.0004987,120]
[349056350,1736956242119,-11031.97031049,0.0004987,14]
[349056352,1736956242129,-11031.97031049,0.00049871,14]
[349056353,1736956242138,-11031.97031049,0.00049872,14]
[349056355,1736956242149,-376.10334092,0.00049881,14]
[349056358,1736956242163,-227.21246572,0.00049881,7]
[349056359,1736956242172,-283.37294146,0.00049882,14]
[349056362,1736956242185,-750.81573537,0.00049887,14]
[349056363,1736956242194,-150.0,0.00049889,7]
[349056365,1736956242204,-283.37294146,0.00049892,14]
[349056367,1736956242213,-376.10334092,0.00049896,14]
[349056369,1736956242223,-283.37294146,0.00049897,14]
[349056371,1736956242232,-319.66,0.000499,60]
[349056373,1736956242242,-267.60731216,0.000499,120]
[349056375,1736956242252,-2035.72818657,0.000499,120]
[349056377,1736956242262,-3177.641758,0.000499,2]
[349056379,1736956242271,-290.44497076,0.000499,38]
[349056381,1736956242281,-474.65809734,0.000499,2]
[349056383,1736956242291,-2316.75633329,0.000499,15]
[349056385,1736956242301,-200.0,0.000499,14]
[349056387,1736956242310,-200.0,0.00049903,14]
[349056389,1736956242320,-150.0,0.00049904,7]
[349056391,1736956242330,-150.0,0.00049909,7]
[349056393,1736956242340,-200.0,0.00049912,14]
[349056395,1736956242351,-200.0,0.00049916,14]
[349056397,1736956242361,-750.81573537,0.00049923,14]
[349056399,1736956242370,-1633.83620803,0.00049923,2]
[349056401,1736956242380,-750.81573537,0.00049923,14]
[349056403,1736956242390,-200.0,0.00049924,14]
[349056405,1736956242399,-376.10334092,0.0004993,14]
[349056406,1736956242409,-150.0,0.00049935,7]
[349056409,1736956242419,-283.37294146,0.00049937,14]
[349056411,1736956242429,-376.10334092,0.00049937,14]
[349056412,1736956242440,-585.91918371,0.00049938,14]
[349056415,1736956242450,-376.10334092,0.0004994,14]
[349056416,1736956242460,-152.61,0.0004994,120]
[349056419,1736956242469,-150.0,0.0004995,7]
[349056421,1736956242479,-150.0,0.00049954,7]
[349056422,1736956242489,-500.0,0.00049958,120]
[349056424,1736956242499,-150.0,0.00049972,7]
[349056427,1736956242509,-1217.35178591,0.0004998,30]
[349056429,1736956242519,-150.0,0.00049992,7]
[349056431,1736956242529,-106251.56967273,0.0005,120]
[349056432,1736956242539,-150211.66357252,0.0005,120]
[349056434,1736956242548,-118704.79149819,0.0005,120]
[349056436,1736956242559,-129574.77439034,0.0005,120]
[349056438,1736956242569,-131120.9037219,0.0005,120]
[349056440,1736956242578,-500.0,0.0005,30]
[349056442,1736956242588,-194701.90033199,0.0005,120]
[349056444,1736956242597,-5534.79074074,0.0005,120]
[349056446,1736956242607,-70621.45888297,0.0005,120]
[349056449,1736956242616,-5618.73060281,0.0005,60]
[349056452,1736956242626,-51557.12475089,0.0005,120]
[349056454,1736956242638,-6350.82044473,0.0005,120]
[349056456,1736956242652,-1254.86279419,0.0005,120]
[349056458,1736956242662,-1009.03224148,0.0005,120]
[349056460,1736956242672,-154.18893983,0.0005,120]
[349056462,1736956242683,-90891.66848527,0.0005,120]
[349056464,1736956242694,-5000.0,0.0005,60]
[349056466,1736956242704,-200.0,0.0005,120]
[349056468,1736956242714,-180.0,0.0005,120]
[349056469,1736956242725,-7241.3927949,0.0005,14]
[349056471,1736956242740,-350.0,0.0005,120]
[349056473,1736956242751,-150.0,0.0005,120]
[349056475,1736956242761,-749.05498191,0.0005,30]
[349056476,1736956242773,-100000.0,0.0005,30]
[349056477,1736956242783,-163.4477265,0.0005,120]
[349056479,1736956242794,-296294.64,0.0005,120]
[349056481,1736956242804,-38898.82,0.0005,120]
[349056483,1736956242815,-3580.64569436,0.0005,6]
[349056485,1736956242826,-25000.0,0.0005,120]
[349056488,1736956242836,-9454.68,0.0005,120]
[349056494,1736956242846,-150.0,0.0005,120]
[349056496,1736956242857,-17354.0,0.0005,11]
[349056501,1736956242867,-4033.83601935,0.0005,60]
[349056504,1736956242876,-3000.0,0.0005,120]
[349056509,1736956242886,-1000.0,0.0005,2]
[349056513,1736956242898,-947.44,0.0005,2]
[349056517,1736956242910,-2000.0,0.0005,120]
[349056519,1736956242920,-500.0,0.00050095,120]
[349056523,1736956242931,-1000.0,0.00050097,120]
[349056524,1736956242943,-3228.96,0.00050159,120]
[349056526,1736956242952,-151.0,0.00050164,120]
[349056529,1736956242962,-254.52,0.00050195,2]
[349056531,1736956242972,-151.011408,0.00050198,120]
[349056534,1736956242982,-4022.0,0.00050234,120]
[349056537,1736956242992,-2222.48,0.0005025,120]
[349056540,1736956243002,-150.0,0.00050288,30]
[349056544,1736956243012,-26378.9,0.00050364,117]
[349056545,1736956243021,-176.86666667,0.00050384,120]
[349056548,1736956243031,-2035.72818657,0.00050456,120]
[349056549,1736956243040,-151.011408,0.00050498,120]
[349056552,1736956243050,-150.0,0.000505,120]
[349056553,1736956243060,-3228.96,0.00050707,120]
[349056556,1736956243070,-151.011408,0.00050798,120]
[349056557,1736956243091,-175.28,0.00050861,2]
[349056559,1736956243104,-160.47396783,0.000509,15]
[349056561,1736956243116,-1633.83620803,0.00050965,2]
[349056563,1736956243126,-27183.20208667,0.00051,120]
[349056565,1736956243136,-10145.68397086,0.00051,120]
[349056567,1736956243145,-20000.0,0.00051,120]
[349056569,1736956243155,-20000.0,0.00051,120]
[349056571,1736956243165,-20000.0,0.00051,120]
[349056573,1736956243175,-16564.02,0.00051,120]
[349056575,1736956243187,-1000.0,0.00051,3]
[349056578,1736956243197,-200.0,0.00051,120]
[349056580,1736956243207,-319.66,0.00051,60]
[349056582,1736956243217,-150.0,0.00051,120]
[349056584,1736956243227,-3000.0,0.00051,120]
[349056585,1736956243237,-2000.0,0.00051,120]
[349056598,1736956243347,-2035.72818657,0.00051011,120]
[349056600,1736956243363,-1617.76678607,0.00051115,28]
[349056602,1736956243373,-151.011408,0.00051198,120]
[349056604,1736956243383,-176.86666667,0.00051233,120]
[349056606,1736956243392,-3228.96,0.00051255,120]
[349056608,1736956243402,-1001.64802598,0.00051383,3]
[349056610,1736956243412,-151.0,0.00051425,120]
[349056612,1736956243422,-151.011408,0.00051498,120]
[349056615,1736956243433,-150.0,0.000515,120]
[349056617,1736956243442,-290.44497076,0.00051567,45]
[349056619,1736956243452,-2035.72818657,0.00051567,120]
[349056620,1736956243462,-1179.75651113,0.00051736,23]
[349056622,1736956243471,-151.011408,0.00051798,120]
[349056624,1736956243480,-3228.96,0.00051803,120]
[349056627,1736956243490,-276.48,0.00051935,2]
[349056631,1736956243500,-300.0,0.00051999,30]
[349056634,1736956243510,-500.0,0.00052,120]
[349056637,1736956243520,-11644.69689988,0.00052,120]
[349056641,1736956243530,-6553.42788427,0.00052,120]
[349056642,1736956243539,-3361.72769603,0.00052,120]
[349056644,1736956243549,-150.0,0.00052,120]
[349056646,1736956243560,-3000.0,0.00052,120]
[349056649,1736956243571,-2000.0,0.00052,120]
[349056650,1736956243581,-1633.83620803,0.00052006,2]
[349056653,1736956243590,-300.0,0.00052053,30]
[349056654,1736956243600,-501.03903812,0.00052054,120]
[349056656,1736956243609,-500.0,0.00052054,120]
[349056658,1736956243619,-500.0,0.00052054,120]
[349056660,1736956243628,-500.0,0.00052054,120]
[349056662,1736956243637,-399.09399067,0.00052054,120]
[349056664,1736956243647,-501.93853913,0.00052054,120]
[349056666,1736956243656,-500.0,0.00052054,120]
[349056668,1736956243665,-504.34064483,0.00052054,120]
[349056670,1736956243676,-500.0,0.00052054,120]
[349056672,1736956243686,-500.0,0.00052054,120]
[349056674,1736956243695,-302.7750763,0.00052054,120]
[349056676,1736956243706,-500.0,0.00052054,120]
[349056678,1736956243716,-500.0,0.00052054,120]
[349056680,1736956243725,-500.0,0.00052054,120]
[349056682,1736956243739,-500.0,0.00052054,120]
[349056684,1736956243748,-500.0,0.00052054,120]
[349056686,1736956243758,-500.0,0.00052054,16]
[349056688,1736956243767,-500.0,0.00052054,120]
[349056690,1736956243778,-500.0,0.00052054,120]
[349056692,1736956243788,-500.0,0.00052054,120]
[349056694,1736956243798,-500.0,0.00052054,120]
[349056696,1736956243809,-500.0,0.00052054,120]
[349056699,1736956243820,-500.0,0.00052054,120]
[349056700,1736956243830,-595.80232169,0.00052054,120]
[349056703,1736956243839,-500.0,0.00052054,120]
[349056705,1736956243849,-500.0,0.00052054,120]
[349056706,1736956243859,-500.0,0.00052054,120]
[349056707,1736956243867,-500.0,0.00052054,120]
[349056709,1736956243877,-500.0,0.00052054,120]
[349056711,1736956243886,-500.0,0.00052054,120]
[349056713,1736956243895,-500.0,0.00052054,120]
[349056715,1736956243906,-500.0,0.00052054,120]
[349056717,1736956243916,-500.0,0.00052054,120]
[349056719,1736956243926,-500.0,0.00052054,120]
[349056720,1736956243936,-500.0,0.00052054,120]
[349056721,1736956243946,-500.0,0.00052054,120]
[349056722,1736956243956,-500.0,0.00052054,120]
[349056723,1736956243966,-500.0,0.00052054,120]
[349056724,1736956243977,-500.0,0.00052054,120]
[349056725,1736956243987,-500.0,0.00052054,120]
[349056726,1736956243998,-500.0,0.00052054,120]
[349056727,1736956244007,-500.0,0.00052054,120]
[349056728,1736956244017,-500.0,0.00052054,120]
[349056729,1736956244026,-500.0,0.00052054,120]
[349056731,1736956244036,-500.0,0.00052054,120]
[349056733,1736956244046,-500.0,0.00052054,120]
[349056735,1736956244055,-500.0,0.00052054,120]
[349056737,1736956244066,-500.0,0.00052054,120]
[349056739,1736956244075,-500.0,0.00052054,120]